bitfinex/quotes_ETHUSD_20250801
["timestamp","ask_amount","ask_price","bid_price","bid_amount"]
[1754081918464,0.1408,3541.4,3541.3,16.85407076]
[1754081918645,4.402,3541.6,3541.5,35.82366228]
[1754081919044,4.402,3541.6,3541.5,38.26636228]
[1754081920561,0.1408,3541.7,3541.6,5.82358256]
[1754081920766,0.1408,3541.7,3541.6,38.26628256]
[1754081920968,0.1408,3541.7,3541.6,40.99111532]
[1754081921283,2.416,3543.0,3542.0,35.82326369]
[1754081921491,0.1408,3542.2,3542.1,35.82318398]
[1754081921846,0.1408,3542.2,3542.1,38.26588398]
[1754081922076,0.1408,3542.2,3542.1,7.88231398]
[1754081922278,0.1408,3542.2,3542.1,5.82318398]
[1754081922479,2.5568,3542.2,3542.1,6.89449]
[1754081922665,0.5829,3542.2,3542.1,5.085028]
[1754081923059,0.1408,3542.2,3542.1,7.90821198]
[1754081923586,0.1408,3542.2,3542.1,20.71461598]
[1754081923953,4.402,3542.3,3542.2,5.82310428]
[1754081924148,4.5428,3542.3,3542.2,31.68966428]
[1754081924355,4.5428,3542.3,3542.2,5.82310428]
[1754081924685,4.5428,3542.3,3542.2,9.31528428]
[1754081925187,4.5428,3542.3,3542.2,11.30058428]
[1754081925386,4.5428,3542.3,3542.2,37.80840428]
[1754081925553,4.5428,3542.3,3542.2,15.30655028]
[1754081925881,4.5428,3542.3,3542.2,13.32125028]
[1754081926288,4.5428,3542.3,3542.2,6.668085]
[1754081926491,4.5428,3542.3,3542.2,9.49118928]
[1754081926987,4.5428,3542.3,3542.2,11.45048928]
[1754081927355,4.5428,3542.3,3542.2,22.61585428]
[1754081928476,0.1408,3542.3,3542.2,25.96331428]
[1754081928677,0.001,3542.8,3542.7,32.94967]
[1754081928876,4.403,3542.8,3542.7,12.280719]
[1754081929077,4.5438,3542.8,3542.7,5.82270584]
[1754081929380,4.5438,3542.8,3542.7,3.0]
[1754081929693,4.5438,3542.8,3542.7,32.257426]
[1754081930487,4.5438,3542.8,3542.7,35.82270584]
[1754081930488,0.1418,3542.8,3542.7,35.82270584]
[1754081930691,0.1418,3542.8,3542.7,14.398673]
[1754081930868,0.001,3542.8,3542.7,9.950135]
[1754081931589,0.001,3542.8,3542.7,17.596807]
[1754081931813,4.403,3542.8,3542.7,17.232202]
[1754081932098,4.403,3542.8,3542.7,22.01420784]
[1754081932456,4.403,3542.8,3542.7,7.78200584]
[1754081932800,4.403,3542.8,3542.7,29.55417884]
[1754081933103,0.001,3542.8,3542.7,32.7523116]
[1754081933758,1e-08,3543.7,3542.7,32.7523116]
[1754081933759,1e-08,3543.7,3543.6,5.82198893]
[1754081934078,1e-08,3543.7,3543.6,31.76878893]
[1754081934282,1e-08,3543.7,3543.6,33.72808893]
[1754081934482,1e-08,3543.7,3543.6,5.82198893]
[1754081934708,1e-08,3543.7,3543.6,6.472201]
[1754081935085,0.43900001,3543.7,3543.6,6.472201]
[1754081935277,2.35560001,3543.7,3543.6,6.472201]
[1754081935480,6.76360001,3543.7,3543.6,6.472201]
[1754081936313,4.408,3543.7,3543.6,6.472201]
[1754081936490,4.408,3543.7,3543.6,3.0]
[1754081937075,5.73597839,3543.7,3543.6,3.0]
[1754081937886,5.73597839,3543.7,3543.6,10.808294]
[1754081938106,4.958,3543.7,3543.6,10.808294]
[1754081939016,4.958,3543.7,3543.6,14.261743]
[1754081939397,4.958,3543.7,3543.6,13.409743]
[1754081939599,4.408,3543.7,3543.6,13.409743]
[1754081939788,4.408,3543.7,3543.6,12.03506]
[1754081939989,4.408,3543.7,3543.6,12.86516]
[1754081940396,4.408,3543.7,3543.6,3.0]
[1754081940814,4.5488,3543.7,3543.6,3.0]
[1754081941013,4.5488,3543.7,3543.6,17.343238]
[1754081941231,4.5488,3543.7,3543.6,7.158806]
[1754081941716,3.37259824,3544.1,3544.0,23.91492]
[1754081941717,0.001,3544.1,3544.0,23.91492]
[1754081941922,4.403,3544.1,3544.0,38.25427042]
[1754081942081,4.402,3544.1,3544.0,34.84596478]
[1754081942282,4.5428,3544.1,3544.0,5.04682136]
[1754081942483,4.5428,3544.1,3544.0,17.13596642]
[1754081942921,4.5428,3544.1,3544.0,25.15704842]
[1754081943091,4.4928,3544.1,3544.0,22.98504842]
[1754081943724,4.4928,3544.1,3544.0,23.45834842]
[1754081943888,4.4928,3544.1,3544.0,14.45987842]
[1754081944089,4.4928,3544.1,3544.0,16.18804283]
[1754081944995,4.4928,3544.1,3544.0,19.50056283]
[1754081945196,4.4928,3544.1,3544.0,5.82167042]
[1754081945402,4.4928,3544.1,3544.0,8.61371442]
[1754081945988,4.4928,3544.1,3544.0,35.82167042]
[1754081946487,4.4928,3544.1,3544.0,19.91069242]
[1754081947123,4.4928,3544.1,3544.0,19.74922342]
[1754081947310,4.4928,3544.1,3544.0,16.07446642]
[1754081947508,0.1488,3544.3,3544.2,32.8215112]
[1754081947827,3.5488,3544.4,3544.3,35.82143159]
[1754081947989,3.5488,3544.4,3544.3,38.25403159]
[1754081948190,3.6896,3544.4,3544.3,37.78863259]
[1754081948518,3.6896,3544.4,3544.3,30.02961459]
[1754081948727,3.6896,3544.4,3544.3,29.66655659]
[1754081949090,3.6896,3544.4,3544.3,38.25403159]
[1754081949291,3.6896,3544.4,3544.3,35.42380659]
[1754081949625,3.6896,3544.4,3544.3,32.86290359]
[1754081949826,3.6896,3544.4,3544.3,9.13873159]
[1754081949995,3.6896,3544.4,3544.3,23.67688559]
[1754081950195,3.6896,3544.4,3544.3,25.63618559]
[1754081951132,3.6896,3544.4,3544.3,37.78073159]
[1754081951334,3.6896,3544.4,3544.3,31.04776559]
[1754081951533,3.6896,3544.4,3544.3,26.69055259]
[1754081951699,4.5408,3544.4,3544.3,26.69055259]
[1754081951893,4.5408,3544.4,3544.3,23.869121]
[1754081952098,4.5408,3544.4,3544.3,20.97555259]
[1754081952431,4.5408,3544.4,3544.3,5.82143159]
[1754081952633,4.5408,3544.4,3544.3,15.83200759]
[1754081953026,4.5408,3544.4,3544.3,15.58200759]
[1754081953331,4.5408,3544.4,3544.3,18.07613159]
[1754081954132,4.5408,3544.4,3544.3,33.68274259]
[1754081955313,4.5408,3544.4,3544.3,38.00403159]
[1754081956537,4.5408,3544.4,3544.3,25.913897]
[1754081956747,4.5408,3544.4,3544.3,25.440597]
[1754081957104,4.5408,3544.4,3544.3,28.26202859]
[1754081957326,4.5408,3544.4,3544.3,37.96903159]
[1754081957539,4.5408,3544.4,3544.3,35.21201959]
[1754081957850,4.5408,3544.4,3544.3,22.59220459]
[1754081958139,4.5408,3544.4,3544.3,19.69162259]
[1754081958303,4.5408,3544.4,3544.3,9.415156]
[1754081958504,4.5408,3544.4,3544.3,7.455856]
[1754081959248,4.5408,3544.4,3544.3,8.203006]
[1754081959453,4.5408,3544.4,3544.3,2.1749]
[1754081961151,4.5408,3544.4,3544.3,2.179308]
[1754081961358,4.5408,3544.4,3544.3,9.731385]
[1754081961512,4.5408,3544.4,3544.3,5.740085]
[1754081961715,4.5408,3544.4,3544.3,2.82143159]
[1754081961962,0.001,3544.8,3544.7,2.82111321]
[1754081962162,0.001,3544.8,3544.7,23.33964221]
[1754081962328,0.001,3544.8,3544.7,25.28330621]
[1754081962653,0.001,3544.8,3544.7,29.68730621]
[1754081963164,0.001,3544.8,3544.7,37.06049321]
[1754081963314,0.001,3544.8,3544.7,33.32183457]
[1754081964136,0.001,3544.8,3544.7,14.65403457]
[1754081964656,0.001,3544.8,3544.7,44.65403457]
[1754081965155,0.001,3544.8,3544.7,27.60355057]
[1754081965321,0.001,3544.8,3544.7,32.57051957]
[1754081965517,4.402,3544.8,3544.7,3.0]
[1754081965733,4.402,3544.8,3544.5,3.024163]
[1754081965734,6.8989,3544.8,3544.5,3.024163]
[1754081965919,4.8407,3544.8,3544.6,3.0]
[1754081966119,4.8407,3544.8,3544.2,2.82147389]
[1754081966120,1.9174,3544.7,3544.5,5.82126582]
[1754081966435,4.402,3544.8,3544.5,33.0]
[1754081966636,4.952,3544.8,3544.7,7.471787]
[1754081966863,4.952,3544.8,3544.7,2.1748]
[1754081967057,5.0928,3544.8,3544.6,4.143928]
[1754081967258,5.0928,3544.8,3544.7,2.970377]
[1754081968037,5.0928,3544.8,3544.6,2.388]
[1754081968247,5.0928,3544.8,3544.5,2.231159]
[1754081968418,4.952,3544.8,3544.5,2.231159]
[1754081968619,0.55,3544.5,3543.9,0.002]
[1754081968851,4.5428,3544.4,3544.0,6.21485]
[1754081969069,6.3194,3544.4,3544.1,3.0]
[1754081969236,2.3561,3544.3,3544.1,3.0]
[1754081969574,4.952,3544.4,3544.1,2.82153021]
[1754081969753,4.952,3544.4,3544.2,2.375786]
[1754081970120,0.1408,3544.3,3544.2,2.375786]
[1754081970376,3.00618,3544.3,3543.9,0.002]
[1754081970664,4.398,3544.2,3544.0,2.380596]
[1754081970849,6.3154,3544.2,3543.9,0.002]
[1754081971050,0.1408,3544.0,3543.9,3.002]
[1754081972169,0.1408,3544.0,3543.9,15.823128]
[1754081972337,0.1408,3544.0,3543.9,11.55707]
[1754081972661,0.1408,3544.0,3543.9,16.62012004]
[1754081972856,0.1408,3544.0,3543.9,21.04685704]
[1754081973056,0.1408,3544.0,3543.9,16.35862504]
[1754081973351,0.1408,3544.0,3543.9,2.752]
[1754081973562,0.1408,3544.0,3543.9,13.64267804]
[1754081973735,0.1408,3544.0,3543.9,8.585253]
[1754081973924,0.1408,3544.0,3543.9,7.960421]
[1754081974656,0.1408,3544.0,3543.9,5.788421]
[1754081974868,2.6082,3544.0,3543.9,2.752]
[1754081975164,3.91699732,3544.0,3543.9,2.752]
[1754081975366,1.99959732,3544.0,3543.9,2.752]
[1754081975723,4.82126774,3544.0,3543.9,2.752]
[1754081976649,0.6908,3544.0,3543.9,2.752]
[1754081976824,3.51247042,3544.0,3543.9,2.752]
[1754081977231,0.6908,3544.0,3543.9,2.752]
[1754081977535,3.51247042,3544.0,3543.9,2.752]
[1754081977961,0.6908,3544.0,3543.9,2.752]
[1754081978474,3.51247042,3544.0,3543.9,2.752]
[1754081978694,4.58565373,3544.0,3543.9,2.752]
[1754081979372,1.76398331,3544.0,3543.9,2.752]
[1754081979532,0.6908,3544.0,3543.9,2.752]
[1754081979979,3.51247042,3544.0,3543.9,2.752]
[1754081980145,5.42987042,3544.0,3543.9,2.752]
[1754081980339,3.51247042,3544.0,3543.9,2.752]
[1754081981971,0.6908,3544.0,3543.9,2.752]
[1754081982169,4.82126539,3544.0,3543.9,2.752]
[1754081982337,9.22126539,3544.0,3543.9,2.752]
[1754081984106,11.13866539,3544.0,3543.9,2.752]
[1754081985103,9.22126539,3544.0,3543.9,2.752]
[1754081985278,9.22126539,3544.0,3543.0,2.96324881]
[1754081985279,0.55,3543.9,3543.0,0.1408]
[1754081985484,0.1408,3543.4,3543.1,1.9577]
[1754081985802,4.4,3543.3,3543.2,2.3995]
[1754081986008,4.4,3543.3,3542.9,10.458721]
[1754081986301,0.1408,3543.2,3542.9,1.9577]
[1754081986501,4.4,3543.1,3543.0,4.9577]
[1754081986689,4.5408,3543.1,3543.0,2.3995]
[1754081986882,4.5408,3543.1,3543.0,5.3995]
[1754081987293,4.5408,3543.1,3543.0,2.3995]
[1754081988172,4.5408,3543.1,3542.8,3.0]
[1754081988596,7.3631988,3543.1,3542.6,3.0]
[1754081988792,2.82251081,3543.0,3542.6,1.9577]
[1754081988999,4.5408,3542.9,3542.6,1.9577]
[1754081989273,4.5408,3542.9,3542.6,4.9577]
[1754081989469,2.8226356,3542.8,3542.6,3.0]
[1754081989701,2.8226356,3542.8,3542.2,0.4418]
[1754081989702,4.5408,3542.7,3542.4,1.9577]
[1754081989921,4.5408,3542.7,3542.6,3.0]
[1754081990270,4.5408,3542.7,3542.4,4.78064241]
[1754081990551,4.5408,3542.7,3542.4,5.3995]
[1754081990839,4.5408,3542.7,3542.6,3.0]
[1754081991024,4.5408,3542.7,3542.5,1.9577]
[1754081992143,4.5408,3542.7,3542.6,3.0]
[1754081992439,4.5408,3542.7,3541.9,0.4418]
[1754081992639,4.4,3542.7,3542.5,3.0]
[1754081992842,0.1408,3542.5,3542.1,1.9577]
[1754081993140,4.4,3542.4,3542.3,25.377307]
[1754081993512,4.4,3542.4,3542.3,27.335007]
[1754081993713,4.4,3542.4,3542.3,1.9577]
[1754081993906,4.4,3542.4,3542.3,27.335007]
[1754081994107,4.4,3542.4,3542.3,30.15803158]
[1754081994526,4.4,3542.4,3542.3,27.335007]
[1754081994829,4.4,3542.4,3542.3,30.15803158]
[1754081996363,4.4,3542.4,3542.3,28.20033158]
[1754081996534,0.1408,3542.5,3542.3,28.20033158]
[1754081996735,14.4,3543.2,3543.1,2.82238717]
[1754081996943,14.4,3543.2,3543.1,36.07366717]
[1754081997267,14.4,3543.2,3543.1,34.42626817]
[1754081997569,4.4,3543.2,3543.1,34.42626817]
[1754081997782,6.779,3543.9,3543.8,5.82182967]
[1754081997926,11.202,3543.9,3543.8,8.83062967]
[1754081998127,11.202,3543.9,3543.8,11.23012967]
[1754081998581,6.779,3543.9,3543.8,11.23012967]
[1754081998877,6.779,3543.9,3543.8,30.7031647]
[1754081999061,6.779,3543.9,3543.8,27.2676917]
[1754081999235,11.202,3543.9,3543.8,27.2676917]
[1754081999430,11.202,3543.9,3543.8,9.6265347]
[1754081999636,11.202,3543.9,3543.8,29.1705287]
[1754081999863,11.202,3543.9,3543.8,32.9443867]
[1754082000229,11.202,3543.9,3543.8,16.4918947]
[1754082000530,11.202,3543.9,3543.8,11.20012967]
[1754082000782,0.25,3547.0,3546.4,4.99456088]
[1754082000984,0.25,3547.0,3546.4,18.65337988]
[1754082001279,0.25,3547.0,3546.6,2.3309]
[1754082001428,4.47,3546.9,3546.6,2.3309]
[1754082001813,0.65279,3546.8,3546.6,3.0]
[1754082001927,0.65279,3546.8,3546.7,3.0]
[1754082002129,0.25,3547.0,3546.7,8.592539]
[1754082002447,0.25,3547.0,3546.9,32.81936338]
[1754082002647,0.25,3547.0,3546.9,22.15023638]
[1754082002830,0.25,3547.0,3546.9,22.51845238]
[1754082003030,4.721,3547.0,3546.9,3.0]
[1754082003260,5.1931,3547.0,3546.9,10.19949138]
[1754082003456,5.1931,3547.0,3546.9,12.15719138]
[1754082003625,4.721,3547.0,3546.9,12.59899138]
[1754082003836,4.721,3547.0,3546.9,11.11369938]
[1754082004033,0.25,3547.0,3546.9,7.5715]
[1754082004234,4.718,3547.0,3546.9,7.8665]
[1754082004436,0.25,3547.0,3546.9,10.68586338]
[1754082004678,4.718,3547.0,3546.9,10.68586338]
[1754082005060,4.718,3547.0,3546.9,24.30285838]
[1754082005280,4.718,3547.0,3546.9,9.432794]
[1754082005496,4.718,3547.0,3546.9,12.25215738]
[1754082006189,4.718,3547.0,3546.9,24.68832338]
[1754082006368,4.718,3547.0,3546.9,21.63293638]
[1754082006570,4.717,3547.0,3546.9,16.90025238]
[1754082006767,4.717,3547.0,3546.9,17.04105238]
[1754082006972,4.717,3547.0,3546.9,12.760511]
[1754082007172,4.8578,3547.0,3546.9,3.0]
[1754082007375,4.8578,3547.0,3546.9,5.610753]
[1754082007686,4.715,3547.0,3546.9,10.82961638]
[1754082008066,4.715,3547.0,3546.9,24.48254438]
[1754082008486,4.715,3547.0,3546.9,23.62974438]
[1754082009193,0.25,3547.0,3546.9,27.61766538]
[1754082009361,4.714,3547.0,3546.9,29.23109311]
[1754082009544,4.714,3547.0,3546.9,11.88531711]
[1754082009746,4.714,3547.0,3546.9,17.232091]
[1754082010062,4.714,3547.0,3546.9,20.25425438]
[1754082010357,0.25,3547.0,3546.9,24.48625438]
[1754082010886,0.25,3547.0,3546.9,21.666891]
[1754082011047,0.25,3547.0,3546.9,24.48625438]
[1754082011247,0.25,3547.0,3546.9,27.69638738]
[1754082011953,0.25,3547.0,3546.9,3.1408]
[1754082012278,0.25,3547.0,3546.9,6.067642]
[1754082012482,0.25,3547.0,3546.9,3.0]
[1754082012783,0.3908,3547.0,3546.9,3.0]
[1754082015076,4.8448,3547.0,3546.9,4.9577]
[1754082015278,0.25,3547.0,3546.9,21.83841538]
[1754082015449,4.703,3547.0,3546.9,24.30420216]
[1754082015885,4.704,3547.0,3546.9,24.30420216]
[1754082016191,4.704,3547.0,3546.9,33.58348638]
[1754082016694,4.704,3547.0,3546.9,28.48531538]
[1754082016899,4.704,3547.0,3546.9,24.97825838]
[1754082017385,4.704,3547.0,3546.9,25.06949438]
[1754082019203,4.704,3547.0,3546.9,27.10609938]
[1754082019354,4.704,3547.0,3546.9,29.83093214]
[1754082019547,0.251,3547.0,3546.9,29.83093214]
[1754082020265,0.251,3547.0,3546.9,40.96679614]
[1754082020865,0.251,3547.0,3546.9,10.96679614]
[1754082021071,0.251,3547.0,3546.9,40.96679614]
[1754082023926,3.5,3547.5,3547.4,2.818966]
[1754082024073,6.31756579,3549.2,3548.5,2.81808228]
[1754082024274,2.2517,3549.1,3548.1,30.0]
[1754082024581,2.2517,3549.1,3548.5,30.0]
[1754082024784,4.44,3549.0,3548.5,30.0]
[1754082024978,0.86815885,3549.8,3548.6,2.294]
[1754082025159,1.8172,3549.6,3548.8,22.070031]
[1754082025355,4.439,3549.7,3548.9,2.294]
[1754082025555,4.439,3549.7,3549.0,16.52167]
[1754082025756,6.2562,3549.7,3548.7,0.2294]
[1754082026065,2.2517,3549.6,3549.0,7.988769]
[1754082026265,2.2517,3549.6,3548.9,3.0]
[1754082026266,5.06892389,3549.6,3548.9,2.81770698]
[1754082026469,5.06892389,3549.6,3548.8,2.81782288]
[1754082026696,0.1408,3549.2,3548.8,2.81782288]
[1754082026898,9.50633012,3549.1,3548.5,6.328835]
[1754082027050,0.1408,3548.9,3548.7,3.862335]
[1754082027254,0.1408,3548.9,3548.2,2.95912806]
[1754082027255,0.1408,3548.5,3548.2,2.81831573]
[1754082027451,4.5768,3548.4,3548.3,5.958506]
[1754082027697,4.5768,3548.4,3548.3,3.0]
[1754082027883,6.394,3548.4,3548.3,3.0]
[1754082028134,4.5768,3548.4,3548.3,3.0]
[1754082028790,4.5768,3548.4,3548.3,9.381316]
[1754082028957,4.5768,3548.4,3548.3,12.19956699]
[1754082029661,0.1408,3548.4,3548.3,12.35408999]
[1754082030507,4.5758,3548.4,3548.3,3.0]
[1754082030793,6.393,3548.4,3548.3,3.0]
[1754082030985,4.5758,3548.4,3548.3,3.0]
[1754082031979,4.5258,3548.4,3548.3,3.0]
[1754082033899,4.5258,3548.4,3547.7,0.1408]
[1754082034098,0.1408,3547.8,3547.4,2.81891775]
[1754082034296,4.428,3547.7,3547.3,6.192932]
[1754082034502,4.428,3547.7,3547.5,2.712128]
[1754082034665,4.428,3547.7,3547.6,19.582708]
[1754082034862,4.428,3547.7,3547.6,3.0]
[1754082035301,4.428,3547.7,3547.6,2.666994]
[1754082035462,4.428,3547.7,3547.6,3.0]
[1754082035866,4.428,3547.7,3547.6,6.00288]
[1754082036067,4.428,3547.7,3547.6,3.0]
[1754082036305,4.428,3547.7,3546.4,0.67692191]
[1754082036306,4.88488,3547.7,3546.4,0.67692191]
[1754082036473,2.81902692,3547.4,3546.7,2.81951925]
[1754082036669,2.81902692,3547.4,3546.5,2.81968137]
[1754082036670,2.81917901,3547.2,3546.5,6.16914484]
[1754082036874,4.63643396,3547.1,3546.4,3.03174983]
[1754082037085,4.427,3547.0,3546.5,4.422183]
[1754082037404,2.2517,3546.9,3546.4,0.002]
[1754082037591,2.81944287,3546.8,3546.4,0.002]
[1754082037805,2.81968137,3546.5,3546.4,0.002]
[1754082037977,3.36968137,3546.5,3546.4,0.002]
[1754082038387,5.62138137,3546.5,3546.4,0.002]
[1754082038601,6.90817212,3546.5,3546.4,0.002]
[1754082039205,2.82036515,3545.7,3544.7,2.82108796]
[1754082039412,7.25040444,3545.6,3544.6,4.65026813]
[1754082039616,2.82069794,3545.3,3544.6,1.8291]
[1754082039782,4.43,3545.2,3544.6,1.8291]
[1754082039982,4.43,3545.2,3544.6,3.0]
[1754082040187,4.43,3545.2,3544.1,0.60353834]
[1754082040389,0.55,3544.8,3544.0,2.917071]
[1754082040584,2.82120356,3544.6,3544.0,2.917071]
[1754082040783,7.2511221,3544.7,3543.9,3.0]
[1754082040983,2.82133166,3544.5,3543.8,3.0]
[1754082041284,4.43,3544.4,3543.9,5.412558]
[1754082041487,4.43,3544.4,3543.8,1.10776884]
[1754082041715,4.43,3544.4,3543.9,4.788569]
[1754082042034,4.43,3544.4,3543.8,1.10776884]
[1754082042194,4.43,3544.4,3544.0,10.2714]
[1754082042392,4.43,3544.4,3543.9,2.82174947]
[1754082042625,4.43,3544.4,3544.0,5.3708]
[1754082042788,4.43,3544.4,3544.0,3.0]
[1754082043153,4.43,3544.4,3544.0,2.82165418]
[1754082043322,4.429,3544.3,3544.2,21.197146]
[1754082043499,2.81988106,3546.3,3544.9,2.82094239]
[1754082043500,2.82040099,3545.6,3544.9,2.82094239]
[1754082043830,4.63745713,3545.8,3545.1,2.8207949]
[1754082044039,1.8172,3545.8,3545.0,8.65448127]
[1754082044187,11.209,3545.2,3545.1,2.8207949]
[1754082044387,6.772,3545.2,3545.1,2.8207949]
[1754082044621,11.209,3545.2,3545.1,12.7756659]
[1754082044821,11.208,3545.2,3545.1,12.7756659]
[1754082045018,4.63713066,3546.2,3545.1,11.51453292]
[1754082045194,4.436,3546.1,3545.4,30.0]
[1754082045399,4.436,3546.0,3545.6,19.91377123]
[1754082045621,4.436,3546.0,3545.7,16.630856]
[1754082046026,4.436,3546.0,3545.8,2.82022138]
[1754082046199,4.436,3545.9,3545.6,6.072752]
[1754082046404,0.1408,3545.7,3545.6,7.39065687]
[1754082047556,0.1408,3545.7,3545.6,8.24265687]
[1754082047852,0.1408,3545.7,3545.6,10.15295687]
[1754082048209,0.1408,3545.7,3545.6,10.62505687]
[1754082048404,0.1408,3545.7,3545.6,2.944616]
[1754082048723,0.1408,3545.7,3545.6,5.76501311]
[1754082048920,0.1408,3545.7,3545.6,3.796616]
[1754082049154,0.1408,3545.7,3545.3,2.8205859]
[1754082049453,6.774,3546.5,3545.5,25.21492]
[1754082049614,4.431,3546.4,3546.2,2.81988742]
[1754082049814,4.431,3546.4,3546.2,6.030768]
[1754082050156,0.1408,3546.3,3546.2,8.85068791]
[1754082050339,0.1408,3546.3,3546.2,10.76098791]
[1754082050687,0.1408,3546.3,3546.2,11.04215491]
[1754082050836,6.774,3546.5,3546.4,2.81976088]
[1754082051021,1.9174,3547.4,3546.7,2.81946759]
[1754082051225,4.434,3547.3,3546.9,2.81935705]
[1754082051439,5.11463,3547.3,3546.9,2.81935705]
[1754082051747,0.1408,3547.0,3546.9,9.05311438]
[1754082051950,0.45688,3547.7,3547.1,2.81916616]
[1754082052147,4.434,3547.6,3547.4,5.878755]
[1754082052445,0.1408,3547.3,3547.2,5.85299226]
[1754082052749,0.1408,3547.3,3547.2,7.72940526]
[1754082052931,0.1408,3547.3,3547.2,20.19452526]
[1754082053271,0.1408,3547.3,3547.2,16.13145826]
[1754082053472,0.1408,3547.3,3547.2,10.11643226]
[1754082053675,0.1408,3547.3,3547.2,8.20613226]
[1754082053837,0.55,3547.2,3546.7,0.1408]
[1754082054037,9.62157686,3547.1,3546.7,0.1408]
[1754082054279,4.8849,3547.1,3546.6,3.0]
[1754082054583,0.1408,3546.8,3546.6,3.0]
[1754082054737,4.432,3546.7,3546.6,3.0]
[1754082055251,4.432,3546.7,3546.6,10.77221587]
[1754082055579,4.432,3546.7,3546.6,5.81960187]
[1754082055773,0.1408,3546.8,3546.7,17.00440237]
[1754082056076,4.5708,3546.8,3546.7,19.19675237]
[1754082056436,4.5708,3546.8,3546.7,9.20818637]
[1754082057136,4.5708,3546.8,3546.7,10.25968637]
[1754082057687,4.5708,3546.8,3546.7,12.16998637]
[1754082058171,4.5708,3546.8,3546.7,7.72982237]
[1754082058380,4.5708,3546.8,3546.7,11.87810737]
[1754082058589,4.5708,3546.8,3546.7,3.0]
[1754082059646,4.5708,3546.8,3546.7,6.308518]
[1754082059887,4.5708,3546.8,3546.7,3.0]
[1754082060051,4.5708,3546.8,3546.7,8.20776037]
[1754082060455,4.5708,3546.8,3546.3,1.9103]
[1754082060687,0.1408,3546.5,3546.4,3.321083]
[1754082060858,4.5688,3546.5,3546.4,3.0]
[1754082061063,4.5688,3546.5,3546.4,5.804083]
[1754082061387,6.4862,3546.5,3545.7,8.115256]
[1754082061686,6.4862,3546.5,3545.9,3.0]
[1754082061687,3.27668294,3546.4,3545.9,3.0]
[1754082062006,0.1408,3546.0,3545.6,2.82036992]
[1754082062191,4.428,3545.9,3545.8,10.23466802]
[1754082062346,4.428,3545.9,3545.8,3.0]
[1754082062550,4.428,3545.9,3545.5,2.82046833]
[1754082062751,4.428,3545.9,3545.7,2.802501]
[1754082062752,0.1408,3545.8,3545.7,2.802501]
[1754082062991,0.1408,3545.8,3545.7,5.802501]
[1754082063989,0.1408,3545.8,3545.7,8.62281856]
[1754082064191,0.1408,3545.8,3545.7,35.82031756]
[1754082064400,0.1408,3546.0,3545.9,3.0]
[1754082064584,4.5658,3546.0,3545.9,10.03019649]
[1754082064787,4.5658,3546.0,3545.9,12.41259649]
[1754082065099,4.5658,3546.0,3545.9,11.94049649]
[1754082065268,4.5658,3546.0,3545.9,3.0]
[1754082066619,4.5658,3546.0,3545.4,1.9103]
[1754082066620,9.75823103,3546.0,3545.4,2.82054956]
[1754082066785,0.1408,3545.7,3545.5,5.82043748]
[1754082066986,4.423,3545.6,3545.5,5.82043748]
[1754082067389,2.81940296,3546.9,3545.7,10.638683]
[1754082067390,2.81972996,3546.5,3545.7,10.638683]
[1754082067635,0.1408,3546.0,3545.9,14.10944749]
[1754082067792,2.3723,3547.2,3546.3,2.81976198]
[1754082067993,2.3723,3547.2,3546.4,14.61362559]
[1754082067994,0.1408,3546.5,3546.4,14.61362559]
[1754082068220,4.5648,3546.5,3546.4,16.35367859]
[1754082068528,4.5648,3546.5,3546.4,23.77286059]
[1754082068701,4.5648,3546.5,3546.4,20.54109759]
[1754082068903,4.5648,3546.5,3546.4,5.3824]
[1754082069120,4.5648,3546.5,3546.4,5.754744]
[1754082069424,4.5648,3546.5,3546.4,3.0]
[1754082069626,4.5638,3546.5,3546.4,37.73006088]
[1754082069836,4.5638,3546.5,3546.4,26.82085388]
[1754082070032,4.5638,3546.5,3546.4,23.23011688]
[1754082070188,1.9174,3547.7,3547.0,2.81923943]
[1754082070393,4.421,3547.6,3547.2,25.928967]
[1754082070591,4.421,3547.6,3547.5,17.64519953]
[1754082070816,4.421,3547.6,3547.5,8.62963153]
[1754082071021,4.421,3547.6,3547.5,8.19994453]
[1754082071199,4.421,3547.6,3547.5,4.650635]
[1754082071419,4.421,3547.6,3547.5,7.46952153]
[1754082071731,4.421,3547.6,3547.5,2.520501]
[1754082072092,2.81841186,3548.1,3547.5,2.520501]
[1754082072287,4.426,3548.0,3547.2,2.3824]
[1754082072492,2.81848928,3548.0,3547.3,2.81903368]
[1754082072705,4.423,3547.9,3547.3,2.81903368]
[1754082073131,2.81864916,3547.8,3547.1,2.81915179]
[1754082073302,2.81864916,3547.8,3547.3,3.0]
[1754082073502,4.422,3547.7,3547.3,3.0]
[1754082073922,7.24075506,3547.7,3547.1,3.0]
[1754082074351,5.42793397,3547.7,3547.0,3.0]
[1754082074645,2.81897253,3547.4,3547.0,3.0]
[1754082074798,7.69564598,3547.7,3546.8,2.819381]
[1754082074799,7.24008307,3547.3,3546.8,3.0]
[1754082075194,4.421,3547.3,3546.8,2.95]
[1754082075433,4.421,3547.3,3546.6,1.9103]
[1754082075434,2.3723,3547.2,3546.3,14.194968]
[1754082075732,2.81915446,3547.2,3546.6,2.81960131]
[1754082075944,7.24006037,3547.3,3546.6,2.81960131]
[1754082076136,7.24006037,3547.3,3546.8,2.81943686]
[1754082076137,5.66569612,3547.3,3546.8,2.81943686]
[1754082076299,5.66569612,3547.3,3546.9,2.713466]